[Event "Torneo Nuevo Centro. Jornada 8"]
[Site "Chess.com"]
[Date "2020.08.07"]
[Round "7"]
[White "Gimenez Saiz, Jose Raul"]
[Black "Yuste Valenzuela, Alejandro"]
[Result "1-0"]
[WhiteElo "1747"]
[BlackElo "1862"]
[TimeControl "180+2"]
[EndTime "11:51:24 PDT"]
[Termination "Victoria de rango013 por abandono"]

1. d4 {[%clk 0:03:01.9]} 1... Nf6 {[%clk 0:03:00.4]} 2. e3 {[%clk 0:02:48.9]}
2... g6 {[%clk 0:03:00.9]} 3. Bd3 {[%clk 0:02:46.5]} 3... Bg7 {[%clk 0:03:02.2]}
4. f4 {[%clk 0:02:45.7]} 4... O-O {[%clk 0:03:03.3]} 5. Nf3 {[%clk 0:02:42.4]}
5... d6 {[%clk 0:03:03.7]} 6. O-O {[%clk 0:02:43.2]} 6... c5 {[%clk 0:03:04]} 7.
c3 {[%clk 0:02:43.2]} 7... Nc6 {[%clk 0:03:04.4]} 8. Nbd2 {[%clk 0:02:35.4]}
8... a6 {[%clk 0:03:03.3]} 9. e4 {[%clk 0:02:27]} 9... cxd4 {[%clk 0:02:57.9]}
10. cxd4 {[%clk 0:02:19.6]} 10... Qb6 {[%clk 0:02:41.1]} 11. Nc4 {[%clk
0:02:15.2]} 11... Qa7 {[%clk 0:02:41.8]} 12. Be3 {[%clk 0:02:00.5]} 12... Ng4
{[%clk 0:02:41.9]} 13. Qd2 {[%clk 0:01:56]} 13... Nxe3 {[%clk 0:02:41.9]} 14.
Nxe3 {[%clk 0:01:54.7]} 14... Nxd4 {[%clk 0:02:40.3]} 15. Kh1 {[%clk 0:01:54.4]}
15... Nxf3 {[%clk 0:02:35.6]} 16. Rxf3 {[%clk 0:01:54.8]} 16... b5 {[%clk
0:02:24.2]} 17. Rc1 {[%clk 0:01:47.7]} 17... Bb7 {[%clk 0:02:19.4]} 18. Rc7
{[%clk 0:01:44.6]} 18... Qb6 {[%clk 0:02:18.6]} 19. Rxe7 {[%clk 0:01:45]} 19...
Rfe8 {[%clk 0:02:09.6]} 20. Rxe8+ {[%clk 0:01:05.1]} 20... Rxe8 {[%clk
0:02:11.5]} 21. Nd5 {[%clk 0:01:05.2]} 21... Bxd5 {[%clk 0:02:10.3]} 22. exd5
{[%clk 0:01:05.6]} 22... Qd4 {[%clk 0:01:56.2]} 23. h3 {[%clk 0:00:55.7]} 23...
Qxb2 {[%clk 0:01:45.5]} 24. Qxb2 {[%clk 0:00:56]} 24... Bxb2 {[%clk 0:01:47.4]}
25. g3 {[%clk 0:00:54.3]} 25... Bd4 {[%clk 0:01:40.9]} 26. Kg2 {[%clk
0:00:54.7]} 26... Kg7 {[%clk 0:01:39.4]} 27. g4 {[%clk 0:00:46]} 27... Re1
{[%clk 0:01:39.3]} 28. Rf1 {[%clk 0:00:44.6]} 28... Re3 {[%clk 0:01:39.3]} 29.
Rf3 {[%clk 0:00:44.8]} 29... Re7 {[%clk 0:01:29.8]} 30. h4 {[%clk 0:00:44.7]}
30... Rc7 {[%clk 0:01:29.5]} 31. f5 {[%clk 0:00:45.1]} 31... Rc5 {[%clk
0:01:20.1]} 32. fxg6 {[%clk 0:00:45.3]} 32... hxg6 {[%clk 0:01:14.8]} 33. h5
{[%clk 0:00:40.1]} 33... Rxd5 {[%clk 0:01:10.2]} 34. hxg6 {[%clk 0:00:38.6]}
34... fxg6 {[%clk 0:01:12.1]} 35. a4 {[%clk 0:00:38.7]} 35... bxa4 {[%clk
0:01:10.1]} 36. Bxa6 {[%clk 0:00:37.9]} 36... Ra5 {[%clk 0:01:07]} 37. Bc4
{[%clk 0:00:38.1]} 37... a3 {[%clk 0:01:01.7]} 38. Ba2 {[%clk 0:00:38.8]} 38...
Bc5 {[%clk 0:00:54.4]} 39. Kh3 {[%clk 0:00:37.7]} 39... Ra7 {[%clk 0:00:44.3]}
40. g5 {[%clk 0:00:37.3]} 40... Re7 {[%clk 0:00:39.3]} 41. Bc4 {[%clk
0:00:22.8]} 41... Be3 {[%clk 0:00:23.1]} 42. Kg2 {[%clk 0:00:18.6]} 42... Bxg5
{[%clk 0:00:20.4]} 43. Rxa3 {[%clk 0:00:16.9]} 43... Bf6 {[%clk 0:00:15.3]} 44.
Ra6 {[%clk 0:00:15.2]} 44... Be5 {[%clk 0:00:11.8]} 45. Kf3 {[%clk 0:00:13.3]}
45... Kf6 {[%clk 0:00:12.8]} 46. Bd5 {[%clk 0:00:12.7]} 46... Rc7 {[%clk
0:00:13.4]} 47. Rc6 {[%clk 0:00:13.1]} 47... Ra7 {[%clk 0:00:12.3]} 48. Rc8
{[%clk 0:00:13.4]} 48... Ra3+ {[%clk 0:00:13]} 49. Ke2 {[%clk 0:00:14]} 49...
Kg5 {[%clk 0:00:12]} 50. Rg8 {[%clk 0:00:13.7]} 50... Kf5 {[%clk 0:00:08.5]} 51.
Rf8+ {[%clk 0:00:14.2]} 51... Kg4 {[%clk 0:00:10.1]} 52. Rg8 {[%clk 0:00:16.1]}
52... g5 {[%clk 0:00:08.2]} 53. Ra8 {[%clk 0:00:14.7]} 53... Kg3 {[%clk
0:00:04.8]} 54. Rxa3+ {[%clk 0:00:13.9]} 54... Kh4 {[%clk 0:00:05.6]} 55. Ra4+
{[%clk 0:00:14]} 55... g4 {[%clk 0:00:06.4]} 56. Be6 {[%clk 0:00:11.4]} 1

[Event "Torneo Nuevo Centro. Jornada 8"]
[Site "Chess.com"]
[Date "2020.08.07"]
[Round "8"]
[White "Martínez Escandell, Alfonso"]
[Black "Birnoveanu, Petru"]
[Result "0-1"]
[WhiteElo "1823"]
[BlackElo "1692"]
[TimeControl "180+2"]
[EndTime "11:56:46 PDT"]
[Termination "Victoria de piculet por abandono"]

1. e4 {[%clk 0:03:00.7]} 1... Nc6 {[%clk 0:03:00]} 2. d4 {[%clk 0:02:59.9]} 2...
e5 {[%clk 0:03:00.3]} 3. d5 {[%clk 0:03:00.7]} 3... Nce7 {[%clk 0:03:00.8]} 4.
c4 {[%clk 0:03:01.3]} 4... Ng6 {[%clk 0:03:01.3]} 5. Nc3 {[%clk 0:03:00.6]} 5...
Bb4 {[%clk 0:03:01.9]} 6. Bd2 {[%clk 0:03:01.4]} 6... Bxc3 {[%clk 0:03:00.3]} 7.
Bxc3 {[%clk 0:03:02.1]} 7... d6 {[%clk 0:03:02.2]} 8. Nf3 {[%clk 0:02:59.6]}
8... a5 {[%clk 0:02:58.2]} 9. a3 {[%clk 0:02:59.6]} 9... b6 {[%clk 0:02:57.6]}
10. Be2 {[%clk 0:02:59.5]} 10... N8e7 {[%clk 0:02:57.4]} 11. O-O {[%clk
0:02:59.9]} 11... f5 {[%clk 0:02:54.6]} 12. exf5 {[%clk 0:02:59.8]} 12... Bxf5
{[%clk 0:02:55.2]} 13. b4 {[%clk 0:02:59.8]} 13... axb4 {[%clk 0:02:55]} 14.
axb4 {[%clk 0:03:00.6]} 14... Rxa1 {[%clk 0:02:55.6]} 15. Qxa1 {[%clk
0:03:02.5]} 15... O-O {[%clk 0:02:56.1]} 16. Qa7 {[%clk 0:02:56.1]} 16... Nf4
{[%clk 0:02:48]} 17. Qa2 {[%clk 0:02:43.9]} 17... Bg4 {[%clk 0:02:42.9]} 18. Bd1
{[%clk 0:02:34.5]} 18... Neg6 {[%clk 0:02:38.3]} 19. h3 {[%clk 0:02:35.1]} 19...
Bxf3 {[%clk 0:02:37.3]} 20. Bxf3 {[%clk 0:02:35.8]} 20... Nxh3+ {[%clk
0:02:36.5]} 21. gxh3 {[%clk 0:02:29.3]} 21... Rxf3 {[%clk 0:02:35.9]} 22. Kg2
{[%clk 0:02:30.5]} 22... Rxc3 {[%clk 0:02:33.2]} 23. c5 {[%clk 0:02:31]} 23...
bxc5 {[%clk 0:02:32.1]} 24. bxc5 {[%clk 0:02:31.8]} 24... Rxc5 {[%clk
0:02:30.6]} 25. Rb1 {[%clk 0:02:31.4]} 25... Qg5+ {[%clk 0:02:26.6]} 26. Kh2
{[%clk 0:02:30.6]} 26... h5 {[%clk 0:02:24.3]} 27. Qe2 {[%clk 0:02:22.7]} 27...
Qf4+ {[%clk 0:02:12.3]} 28. Kg1 {[%clk 0:02:22.5]} 28... Rc1+ {[%clk 0:02:11.7]}
29. Rxc1 {[%clk 0:02:21.8]} 29... Qxc1+ {[%clk 0:02:12.4]} 30. Kg2 {[%clk
0:02:23.3]} 30... Nf4+ {[%clk 0:02:11.4]} 0

[Event "Torneo Nuevo Centro. Jornada 8"]
[Site "Chess.com"]
[Date "2020.08.07"]
[Round "8"]
[White "Bascuñana Sánchez, Pablo"]
[Black "Zamora Soler, Raul"]
[Result "1-0"]
[WhiteElo "1671"]
[BlackElo "1860"]
[TimeControl "180+2"]
[EndTime "11:57:02 PDT"]
[Termination "Victoria de Pabasan2010 por jaque mate"]

1. e4 {[%clk 0:03:01.9]} 1... e6 {[%clk 0:02:59.7]} 2. Nf3 {[%clk 0:03:01.7]}
2... c5 {[%clk 0:03:00.2]} 3. d4 {[%clk 0:03:01.6]} 3... cxd4 {[%clk 0:03:01.5]}
4. Nxd4 {[%clk 0:03:02.1]} 4... Nc6 {[%clk 0:03:02.7]} 5. Nxc6 {[%clk
0:03:01.9]} 5... bxc6 {[%clk 0:03:02.7]} 6. Be3 {[%clk 0:02:59.2]} 6... d5
{[%clk 0:03:03.4]} 7. exd5 {[%clk 0:02:58.2]} 7... cxd5 {[%clk 0:03:04.4]} 8.
Bb5+ {[%clk 0:02:57.1]} 8... Bd7 {[%clk 0:03:05.3]} 9. Bxd7+ {[%clk 0:02:56.6]}
9... Qxd7 {[%clk 0:03:06.2]} 10. a3 {[%clk 0:02:56.4]} 10... Nf6 {[%clk
0:02:58.7]} 11. O-O {[%clk 0:02:56.5]} 11... Be7 {[%clk 0:02:59.3]} 12. Nc3
{[%clk 0:02:56.6]} 12... O-O {[%clk 0:03:00]} 13. Re1 {[%clk 0:02:56.6]} 13...
Rfc8 {[%clk 0:02:59.3]} 14. Bg5 {[%clk 0:02:53.9]} 14... Rab8 {[%clk 0:02:55.4]}
15. Rb1 {[%clk 0:02:52.3]} 15... h6 {[%clk 0:02:50.3]} 16. Bxf6 {[%clk
0:02:52.3]} 16... Bxf6 {[%clk 0:02:51.2]} 17. Ne4 {[%clk 0:02:48.1]} 17... Bxb2
{[%clk 0:02:45.8]} 18. Ng3 {[%clk 0:02:37.3]} 18... Bxa3 {[%clk 0:02:40.1]} 19.
Rxb8 {[%clk 0:02:32.9]} 19... Rxb8 {[%clk 0:02:40.6]} 20. Qf3 {[%clk 0:02:25.4]}
20... Bc5 {[%clk 0:02:36.2]} 21. Nh5 {[%clk 0:02:21.9]} 21... e5 {[%clk
0:02:09.8]} 22. Qg3 {[%clk 0:02:18.8]} 22... Kf8 {[%clk 0:01:42.4]} 23. Qxg7+
{[%clk 0:02:14.8]} 23... Ke7 {[%clk 0:01:43.3]} 24. Qf6+ {[%clk 0:02:13.2]}
24... Ke8 {[%clk 0:01:37.5]} 25. Rxe5+ {[%clk 0:02:13.1]} 25... Be7 {[%clk
0:01:35.9]} 26. Qh8# {[%clk 0:02:12.9]} 1

[Event "Torneo Nuevo Centro. Jornada 8"]
[Site "Chess.com"]
[Date "2020.08.07"]
[Round "8"]
[White "Blanco Solaz, Ramón"]
[Black "Casado Andreu, David"]
[Result "1-0"]
[WhiteElo "1956"]
[BlackElo "1751"]
[TimeControl "180+2"]
[EndTime "11:58:29 PDT"]
[Termination "Victoria de Rbs77 por abandono"]

1. e4 {[%clk 0:03:01.9]} 1... e5 {[%clk 0:03:00.6]} 2. f4 {[%clk 0:03:00.8]}
2... d5 {[%clk 0:03:01]} 3. exd5 {[%clk 0:03:01.3]} 3... c6 {[%clk 0:03:01.9]}
4. dxc6 {[%clk 0:03:02]} 4... Nxc6 {[%clk 0:03:03.8]} 5. Bb5 {[%clk 0:03:00.5]}
5... exf4 {[%clk 0:03:01.7]} 6. Qe2+ {[%clk 0:03:01.3]} 6... Be6 {[%clk
0:02:56.4]} 7. Nf3 {[%clk 0:03:00.7]} 7... Nf6 {[%clk 0:02:55.9]} 8. O-O {[%clk
0:03:01.6]} 8... Qb6+ {[%clk 0:02:55.3]} 9. Kh1 {[%clk 0:03:01.5]} 9... Bc5
{[%clk 0:02:24.1]} 10. d4 {[%clk 0:02:56.5]} 10... Bd6 {[%clk 0:02:17.9]} 11. c4
{[%clk 0:02:53.6]} 11... O-O {[%clk 0:02:03]} 12. c5 {[%clk 0:02:53.1]} 12...
Bxc5 {[%clk 0:02:01.4]} 13. dxc5 {[%clk 0:02:53.9]} 13... Qxc5 {[%clk 0:02:02]}
14. Bxc6 {[%clk 0:02:54.9]} 14... bxc6 {[%clk 0:02:00.9]} 15. Bxf4 {[%clk
0:02:55.9]} 15... Bc4 {[%clk 0:02:01.1]} 16. Qc2 {[%clk 0:02:56]} 16... Qd5
{[%clk 0:01:24.3]} 17. Rd1 {[%clk 0:02:54.5]} 17... Qe6 {[%clk 0:01:20.1]} 18.
Ng5 {[%clk 0:02:55.4]} 18... Qg4 {[%clk 0:01:07.6]} 19. Qf2 {[%clk 0:02:39.4]}
19... Qxd1+ {[%clk 0:01:06]} 20. Qg1 {[%clk 0:02:39.6]} 20... Rad8 {[%clk
0:00:56.4]} 21. Nc3 {[%clk 0:02:38.5]} 21... Qg4 {[%clk 0:00:52.6]} 22. Be3
{[%clk 0:02:33.1]} 22... Rfe8 {[%clk 0:00:50.8]} 23. h3 {[%clk 0:02:31.7]} 23...
Qf5 {[%clk 0:00:45.6]} 24. Nf3 {[%clk 0:02:27.1]} 24... Ne4 {[%clk 0:00:36.8]}
25. Nxe4 {[%clk 0:02:14.5]} 25... Qxe4 {[%clk 0:00:37.8]} 26. Bxa7 {[%clk
0:02:15.8]} 26... Rd3 {[%clk 0:00:30.2]} 27. b3 {[%clk 0:02:13.3]} 27... Bb5
{[%clk 0:00:29.1]} 28. a4 {[%clk 0:02:13.4]} 28... Ba6 {[%clk 0:00:29.3]} 29.
Re1 {[%clk 0:02:10.5]} 29... Qb4 {[%clk 0:00:28.7]} 30. Rxe8+ {[%clk 0:02:11]}
1

[Event "Torneo Nuevo Centro. Jornada 8"]
[Site "Chess.com"]
[Date "2020.08.07"]
[Round "8"]
[White "Gukasov, Artem"]
[Black "Hernández Tomás, Efrén"]
[Result "1-0"]
[WhiteElo "1553"]
[BlackElo "1077"]
[TimeControl "180+2"]
[EndTime "11:59:12 PDT"]
[Termination "Victoria de ArtemGukasov por jaque mate"]

1. e4 {[%clk 0:02:57.9]} 1... e5 {[%clk 0:03:01.1]} 2. Nf3 {[%clk 0:02:57.8]}
2... Nf6 {[%clk 0:03:02.2]} 3. Nxe5 {[%clk 0:02:55.8]} 3... Qe7 {[%clk
0:03:02.7]} 4. Nf3 {[%clk 0:02:56.7]} 4... Qxe4+ {[%clk 0:03:02.6]} 5. Be2
{[%clk 0:02:56.9]} 5... Be7 {[%clk 0:03:01.6]} 6. Nc3 {[%clk 0:02:55.9]} 6...
Qe6 {[%clk 0:02:59.7]} 7. d4 {[%clk 0:02:54.5]} 7... O-O {[%clk 0:02:58.2]} 8.
Be3 {[%clk 0:02:36.8]} 8... d5 {[%clk 0:03:00.1]} 9. O-O {[%clk 0:02:36.7]} 9...
Nc6 {[%clk 0:02:58.8]} 10. a3 {[%clk 0:02:35.6]} 10... Ne4 {[%clk 0:02:59.2]}
11. Nxd5 {[%clk 0:02:34.6]} 11... Qxd5 {[%clk 0:02:58.3]} 12. c4 {[%clk
0:02:35.2]} 12... Qd7 {[%clk 0:02:52.6]} 13. d5 {[%clk 0:02:27.5]} 13... Na5
{[%clk 0:02:41.5]} 14. Qc2 {[%clk 0:02:22.5]} 14... Nf6 {[%clk 0:02:38.7]} 15.
b4 {[%clk 0:02:20.6]} 15... Nxc4 {[%clk 0:02:35.4]} 16. Qxc4 {[%clk 0:02:18.2]}
16... Nxd5 {[%clk 0:02:32.7]} 17. Rad1 {[%clk 0:02:16.8]} 17... c6 {[%clk
0:02:31.7]} 18. Bd3 {[%clk 0:02:05.1]} 18... Qe6 {[%clk 0:02:28.8]} 19. Rfe1
{[%clk 0:01:40.5]} 19... Nxe3 {[%clk 0:02:26.5]} 20. Rxe3 {[%clk 0:01:41.2]}
20... Qxc4 {[%clk 0:02:26]} 21. Bxc4 {[%clk 0:01:41.4]} 21... Bf6 {[%clk
0:02:16.4]} 22. h3 {[%clk 0:01:28.2]} 22... b5 {[%clk 0:02:11]} 23. Bb3 {[%clk
0:01:11.8]} 23... a6 {[%clk 0:02:11]} 24. Rd6 {[%clk 0:01:09]} 24... Bb7 {[%clk
0:02:10.2]} 25. Rd7 {[%clk 0:01:09]} 25... Bc8 {[%clk 0:02:07.6]} 26. Rc7 {[%clk
0:01:07]} 26... Bb2 {[%clk 0:02:01]} 27. Rxc6 {[%clk 0:00:48.4]} 27... Bxa3
{[%clk 0:01:58.6]} 28. Rc7 {[%clk 0:00:33.2]} 28... Bxb4 {[%clk 0:01:48.7]} 29.
Re2 {[%clk 0:00:28.9]} 29... Ba5 {[%clk 0:01:48]} 30. Rxf7 {[%clk 0:00:22]}
30... Rxf7 {[%clk 0:01:47.3]} 31. Re8# {[%clk 0:00:21.9]} 1

[Event "Torneo Nuevo Centro. Jornada 8"]
[Site "Chess.com"]
[Date "2020.08.07"]
[Round "8"]
[White "Aymerich Rosell, Pablo"]
[Black "Montesinos Diaz, Luis"]
[Result "1-0"]
[WhiteElo "1966"]
[BlackElo "1863"]
[TimeControl "180+2"]
[EndTime "12:00:07 PDT"]
[Termination "Victoria de jasikevic por tiempo"]

1. e4 {[%clk 0:03:01.9]} 1... c6 {[%clk 0:02:58.8]} 2. d4 {[%clk 0:03:02.1]}
2... d5 {[%clk 0:02:58.9]} 3. e5 {[%clk 0:03:03.1]} 3... c5 {[%clk 0:02:59.9]}
4. dxc5 {[%clk 0:03:02.2]} 4... e6 {[%clk 0:03:00.9]} 5. a3 {[%clk 0:03:02.2]}
5... Bxc5 {[%clk 0:03:01.3]} 6. Bd3 {[%clk 0:02:59.4]} 6... Nc6 {[%clk
0:02:59.7]} 7. Nf3 {[%clk 0:02:57.6]} 7... Nge7 {[%clk 0:02:59.5]} 8. O-O {[%clk
0:02:56.8]} 8... Ng6 {[%clk 0:02:58.6]} 9. b4 {[%clk 0:02:54.8]} 9... Bb6 {[%clk
0:02:58.7]} 10. Bb2 {[%clk 0:02:55.5]} 10... Bc7 {[%clk 0:02:59.5]} 11. Re1
{[%clk 0:02:55.6]} 11... O-O {[%clk 0:02:55.1]} 12. Nbd2 {[%clk 0:02:53]} 12...
b6 {[%clk 0:02:44.4]} 13. c4 {[%clk 0:02:50.6]} 13... Bb7 {[%clk 0:02:40.6]} 14.
cxd5 {[%clk 0:02:47.9]} 14... Qxd5 {[%clk 0:02:41.1]} 15. Be4 {[%clk 0:02:44.7]}
15... Qd7 {[%clk 0:02:40.9]} 16. Nc4 {[%clk 0:02:41.7]} 16... Rad8 {[%clk
0:02:37.6]} 17. Qc2 {[%clk 0:02:32.9]} 17... b5 {[%clk 0:02:27]} 18. Rad1 {[%clk
0:02:21.1]} 18... Qe7 {[%clk 0:02:21.7]} 19. Nd6 {[%clk 0:02:18.6]} 19... Bxd6
{[%clk 0:02:14.6]} 20. Bxc6 {[%clk 0:02:15.3]} 20... Bb8 {[%clk 0:01:00.9]} 21.
Bxb7 {[%clk 0:02:11.4]} 21... Qxb7 {[%clk 0:01:00.1]} 22. Ng5 {[%clk 0:02:02]}
22... Rxd1 {[%clk 0:00:52.8]} 23. Rxd1 {[%clk 0:01:57]} 23... Rc8 {[%clk
0:00:42.6]} 24. Qd3 {[%clk 0:01:44.7]} 24... h6 {[%clk 0:00:32]} 25. Nf3 {[%clk
0:01:38.9]} 25... Nf4 {[%clk 0:00:30.1]} 26. Qd7 {[%clk 0:01:35.5]} 26... Qxd7
{[%clk 0:00:22.5]} 27. Rxd7 {[%clk 0:01:36]} 27... Nd5 {[%clk 0:00:19.6]} 28. g3
{[%clk 0:01:30.3]} 28... Kf8 {[%clk 0:00:20.3]} 29. Rb7 {[%clk 0:01:29.2]} 29...
a6 {[%clk 0:00:16.6]} 30. Bd4 {[%clk 0:01:18.2]} 30... Ke8 {[%clk 0:00:06.6]}
31. Bc5 {[%clk 0:01:18.3]} 31... Nc7 {[%clk 0:00:02.6]} 32. Bd6 {[%clk
0:01:17.1]} 32... Kd8 {[%clk 0:00:02.1]} 33. Nd4 {[%clk 0:01:17.2]} 1

[Event "Torneo Nuevo Centro. Jornada 8"]
[Site "Chess.com"]
[Date "2020.08.07"]
[Round "8"]
[White "Kovacevic, Slobodan"]
[Black "Gimenez Saiz, Jose Raul"]
[Result "1-0"]
[WhiteElo "2216"]
[BlackElo "1746"]
[TimeControl "180+2"]
[EndTime "12:00:17 PDT"]
[Termination "Victoria de nikko110 por abandono"]

1. d4 {[%clk 0:03:01.9]} 1... d6 {[%clk 0:02:55.8]} 2. Nf3 {[%clk 0:03:00.7]}
2... Nd7 {[%clk 0:02:53.7]} 3. Bf4 {[%clk 0:02:59.8]} 3... g6 {[%clk 0:02:54]}
4. c3 {[%clk 0:02:58.1]} 4... Bg7 {[%clk 0:02:54.9]} 5. e4 {[%clk 0:02:58.3]}
5... e6 {[%clk 0:02:50.7]} 6. h3 {[%clk 0:02:57.5]} 6... e5 {[%clk 0:02:50.2]}
7. dxe5 {[%clk 0:02:53.9]} 7... Ne7 {[%clk 0:02:52.1]} 8. exd6 {[%clk
0:02:52.2]} 8... cxd6 {[%clk 0:02:30.1]} 9. Bxd6 {[%clk 0:02:51.3]} 9... O-O
{[%clk 0:02:28]} 10. Be2 {[%clk 0:02:42.8]} 10... Re8 {[%clk 0:02:13.7]} 11. O-O
{[%clk 0:02:41.9]} 11... Nc6 {[%clk 0:02:03.3]} 12. Qc2 {[%clk 0:02:38.8]} 12...
Nde5 {[%clk 0:02:03.9]} 13. Bxe5 {[%clk 0:02:33.8]} 13... Nxe5 {[%clk
0:02:04.1]} 14. Nbd2 {[%clk 0:02:31.3]} 14... Qb6 {[%clk 0:01:58.3]} 15. Nxe5
{[%clk 0:02:28.7]} 15... Rxe5 {[%clk 0:01:57.2]} 16. Nc4 {[%clk 0:02:28]} 16...
Qc5 {[%clk 0:01:44.8]} 17. Nxe5 {[%clk 0:02:27]} 17... Qxe5 {[%clk 0:01:46.7]}
18. Rad1 {[%clk 0:02:21.3]} 18... Qg5 {[%clk 0:01:40.9]} 19. f4 {[%clk
0:02:18.2]} 19... Qe7 {[%clk 0:01:39.8]} 20. Kh1 {[%clk 0:02:14.1]} 20... Be6
{[%clk 0:01:31.1]} 21. a3 {[%clk 0:02:10]} 21... Rc8 {[%clk 0:01:27.5]} 22. f5
{[%clk 0:02:07.8]} 22... gxf5 {[%clk 0:01:24.9]} 23. exf5 {[%clk 0:02:06.9]}
23... Bc4 {[%clk 0:01:20.5]} 24. Bxc4 {[%clk 0:01:56.3]} 24... Rxc4 {[%clk
0:01:22.4]} 25. Qf2 {[%clk 0:01:52.9]} 25... Qg5 {[%clk 0:01:15.9]} 26. f6
{[%clk 0:01:48.9]} 26... Bf8 {[%clk 0:01:13.9]} 27. Rd8 {[%clk 0:01:46.5]} 27...
h5 {[%clk 0:01:04.6]} 28. Qe2 {[%clk 0:01:37.3]} 28... Rh4 {[%clk 0:00:43.5]}
29. Rxf8+ {[%clk 0:01:23.8]} 29... Kxf8 {[%clk 0:00:41.1]} 30. Qe7+ {[%clk
0:01:22.6]} 30... Kg8 {[%clk 0:00:42.2]} 31. Qe8+ {[%clk 0:01:21.6]} 31... Kh7
{[%clk 0:00:34.9]} 32. Qxf7+ {[%clk 0:01:20.7]} 32... Kh8 {[%clk 0:00:35.3]} 33.
Qe8+ {[%clk 0:01:14.4]} 33... Kh7 {[%clk 0:00:35.7]} 34. Qd7+ {[%clk 0:01:12.2]}
34... Kh6 {[%clk 0:00:34.9]} 35. f7 {[%clk 0:01:10.3]} 35... Rxh3+ {[%clk
0:00:33.3]} 36. Qxh3 {[%clk 0:01:07.6]} 1

[Event "Torneo Nuevo Centro. Jornada 8"]
[Site "Chess.com"]
[Date "2020.08.07"]
[Round "8"]
[White "Grigorev, Artur "]
[Black "Fente Fernandez, Jose Ignacio"]
[Result "0-1"]
[WhiteElo "979"]
[BlackElo "1461"]
[TimeControl "180+2"]
[EndTime "12:01:09 PDT"]
[Termination "Victoria de SrFente por jaque mate"]

1. e4 {[%clk 0:03:01.9]} 1... e5 {[%clk 0:03:00]} 2. Nf3 {[%clk 0:03:01.9]} 2...
Nc6 {[%clk 0:03:01]} 3. Bc4 {[%clk 0:03:01]} 3... Bc5 {[%clk 0:03:01.1]} 4. b4
{[%clk 0:03:01.5]} 4... Bxb4 {[%clk 0:02:59.5]} 5. c3 {[%clk 0:03:02.4]} 5...
Ba5 {[%clk 0:02:58.9]} 6. d4 {[%clk 0:03:01.7]} 6... exd4 {[%clk 0:02:57.5]} 7.
O-O {[%clk 0:03:01.5]} 7... Bxc3 {[%clk 0:02:54]} 8. Nxc3 {[%clk 0:03:00.4]}
8... dxc3 {[%clk 0:02:53.8]} 9. Ng5 {[%clk 0:02:54.6]} 9... Ne5 {[%clk
0:02:54.2]} 10. Qd4 {[%clk 0:02:49.4]} 10... f6 {[%clk 0:02:51.4]} 11. Nf3
{[%clk 0:02:38.1]} 11... Nxc4 {[%clk 0:02:51]} 12. Qxc4 {[%clk 0:02:34.3]} 12...
Ne7 {[%clk 0:02:50]} 13. Qxc3 {[%clk 0:02:31.7]} 13... d6 {[%clk 0:02:47.2]} 14.
Qb3 {[%clk 0:02:14.6]} 14... d5 {[%clk 0:02:39.7]} 15. Rd1 {[%clk 0:02:14.3]}
15... Be6 {[%clk 0:02:34.2]} 16. Nd4 {[%clk 0:01:48.5]} 16... O-O {[%clk
0:02:21]} 17. Nxe6 {[%clk 0:01:45.5]} 17... Qd6 {[%clk 0:02:18]} 18. Nxf8 {[%clk
0:01:41.7]} 18... Rxf8 {[%clk 0:02:17.8]} 19. exd5 {[%clk 0:01:39.2]} 19... Qe5
{[%clk 0:02:15.7]} 20. d6+ {[%clk 0:01:30.4]} 20... Kh8 {[%clk 0:02:01.6]} 21.
d7 {[%clk 0:01:21.3]} 21... Rd8 {[%clk 0:01:57.2]} 22. Ba3 {[%clk 0:01:15.5]}
22... Nc6 {[%clk 0:01:51.7]} 23. Qxb7 {[%clk 0:01:15]} 23... Nd4 {[%clk
0:01:49.2]} 24. Bb2 {[%clk 0:01:07.6]} 24... Ne2+ {[%clk 0:01:37.8]} 25. Kf1
{[%clk 0:01:03]} 25... Qh5 {[%clk 0:01:27.8]} 26. h3 {[%clk 0:00:55.4]} 26...
Qf7 {[%clk 0:01:10.5]} 27. Qc8 {[%clk 0:00:49.5]} 27... Qe7 {[%clk 0:01:09.6]}
28. Qxc7 {[%clk 0:00:44.8]} 28... Nf4 {[%clk 0:00:59.6]} 29. Rd4 {[%clk
0:00:27.6]} 29... Ne6 {[%clk 0:00:50.5]} 30. Rd6 {[%clk 0:00:19.7]} 30... Nxc7
{[%clk 0:00:50.7]} 31. Rad1 {[%clk 0:00:17.8]} 31... Nb5 {[%clk 0:00:43.6]} 32.
Bd4 {[%clk 0:00:13.2]} 32... Nxd6 {[%clk 0:00:43.7]} 33. Bc5 {[%clk 0:00:13.5]}
33... Rxd7 {[%clk 0:00:42.1]} 34. Bxd6 {[%clk 0:00:13.2]} 34... Rxd6 {[%clk
0:00:42.9]} 35. Rxd6 {[%clk 0:00:13.4]} 35... Qxd6 {[%clk 0:00:44.8]} 36. Kg1
{[%clk 0:00:13.5]} 36... Qd2 {[%clk 0:00:43.8]} 37. Kh2 {[%clk 0:00:14]} 37...
Qxa2 {[%clk 0:00:44.1]} 38. Kg3 {[%clk 0:00:14.5]} 38... Qe2 {[%clk 0:00:45.2]}
39. f3 {[%clk 0:00:14.9]} 39... a5 {[%clk 0:00:46.3]} 40. Kf4 {[%clk 0:00:14.9]}
40... a4 {[%clk 0:00:47.5]} 41. Kf5 {[%clk 0:00:15.4]} 41... Qe5+ {[%clk
0:00:44.2]} 42. Kg4 {[%clk 0:00:15.8]} 42... h5+ {[%clk 0:00:44.8]} 43. Kh4
{[%clk 0:00:15.5]} 43... Qg5# {[%clk 0:00:46.6]} 0